Workbook

Sheet Volumetrics
A1: Detergent Tracking | I1: Month End Use Only!
A2: Site | C2: Manager
A3: Date | B3: 2013-02-08 | C3: Prior Date | D3: 2013-02-01
B4: Count | C4: % of Total | J4: Cars since Month End
A5: Traditional | B5: 0 | C5: =IF($B$8<>0,+B5/$B$8,0) -> 0 | I5: =+A5 -> Traditional | J5: 368
A6: Extra Service Cars | B6: 0 | C6: =IF($B$8<>0,+B6/$B$8,0) -> 0 | I6: =+A6 -> Extra Service Cars | J6: 95
I7: =+A7 -> 0 | J7: 274
A8: Total | B8: 0 | C8: =SUM(C5,C6) -> 0 | G8: $/Car All | H8: =IF(B8 > 0, (H11*D11+G22*D22)/B8, 0) -> 0 | I8: =+A8 -> Total | J8: =SUM(J5:J6) -> 463 | M8: Below $0.55=Green
I9: * SME means "Since Month End" | M9: Above $0.55=Red
A10: Detergent | B10: Use | C10: Pump/Orofice/Etc. | D10: Cars | E10: Gals Used | F10: Oz/Car | G10: Cents / Oz | H10: Cost/Car | I10: Cars SME | J10: Gals SME
A11: Traditional Detergents | D11: =SUM(AllCars) -> 0 | H11: =SUM(H13:H21) ->  | M11: Below $0.48=Green
D12: =+$B$5 -> 0 | F12: =+(Volumetrics[[#This Row],[Gals Used]]*128)/Volumetrics[[#This Row],[Cars]] ->  | H12: =+Volumetrics[[#This Row],[Oz/Car]]*Volumetrics[[#This Row],[Cents / Oz]]/100 ->  | I12: =SUM($J$5:$J$6) -> 463 | J12: =+Volumetrics[[#This Row],[Cars SME]]*Volumetrics[[#This Row],[Oz/Car]]/128 -> 
A13: BC Hi PH 380 | B13: Second Presoak | C13: HM 530/ Pink | D13: 0 | F13: =+IF(Volumetrics[[#This Row],[Cars]] > 0, (Volumetrics[[#This Row],[Gals Used]]*128)/Volumetrics[[#This Row],[Cars]], 0) -> 0 | G13: 22.65 | H13: =+Volumetrics[[#This Row],[Oz/Car]]*Volumetrics[[#This Row],[Cents / Oz]]/100 -> 0 | I13: =SUM($J$5:$J$6) -> 463 | J13: =+Volumetrics[[#This Row],[Cars SME]]*Volumetrics[[#This Row],[Oz/Car]]/128 -> 0 | M13: Above $0.48=Red
A14: Hand soap | B14: Prep Gun | C14: HM 530/ Blue | D14: 0 | F14: =+(Volumetrics[[#This Row],[Gals Used]]*128)/Volumetrics[[#This Row],[Cars]] ->  | G14: =AVERAGEIF(Inventory[[#Data],[Product]],Volumetrics[[#This Row],[Detergent]],Inventory[[#Data],[Cost / Gal]])/128* 100 -> 3.6171875 | H14: =+Volumetrics[[#This Row],[Oz/Car]]*Volumetrics[[#This Row],[Cents / Oz]]/100 ->  | I14: =SUM($J$5:$J$6) -> 463 | J14: =+Volumetrics[[#This Row],[Cars SME]]*Volumetrics[[#This Row],[Oz/Car]]/128 -> 
A15: BC Smart Shine | B15: Front Presoak | C15: HM 530/ Pink | D15: 0 | F15: =+IF(Volumetrics[[#This Row],[Cars]] > 0, (Volumetrics[[#This Row],[Gals Used]]*128)/Volumetrics[[#This Row],[Cars]], 0) -> 0 | G15: 26.49 | H15: =+Volumetrics[[#This Row],[Oz/Car]]*Volumetrics[[#This Row],[Cents / Oz]]/100 -> 0 | I15: =SUM($J$5:$J$6) -> 463 | J15: =+Volumetrics[[#This Row],[Cars SME]]*Volumetrics[[#This Row],[Oz/Car]]/128 -> 0
A16: BC Low Ph 180 | B16: CTA #1 | C16: HM 530/ Pink | D16: =+$B$5 -> 0 | F16: =+(Volumetrics[[#This Row],[Gals Used]]*128)/Volumetrics[[#This Row],[Cars]] ->  | G16: 12.99 | H16: =+Volumetrics[[#This Row],[Oz/Car]]*Volumetrics[[#This Row],[Cents / Oz]]/100 ->  | I16: =SUM($J$5:$J$6) -> 463 | J16: =+Volumetrics[[#This Row],[Cars SME]]*Volumetrics[[#This Row],[Oz/Car]]/128 -> 
A17: One Step | B17: CTA #2 | C17: HM 530/ Blue | D17: 0 | F17: =+IF(Volumetrics[[#This Row],[Cars]] > 0, (Volumetrics[[#This Row],[Gals Used]]*128)/Volumetrics[[#This Row],[Cars]], 0) -> 0 | G17: 12.99 | H17: =+Volumetrics[[#This Row],[Oz/Car]]*Volumetrics[[#This Row],[Cents / Oz]]/100 -> 0 | I17: 463 | J17: =+Volumetrics[[#This Row],[Cars SME]]*Volumetrics[[#This Row],[Oz/Car]]/128 -> 0
A18: BC Hi PH 3618 | B18: Second Presoak | C18: HM 530 / Yellow | D18: 0 | F18: =+IF(Volumetrics[[#This Row],[Cars]] > 0, (Volumetrics[[#This Row],[Gals Used]]*128)/Volumetrics[[#This Row],[Cars]], 0) -> 0 | G18: 14.4 | H18: =+Volumetrics[[#This Row],[Oz/Car]]*Volumetrics[[#This Row],[Cents / Oz]]/100 -> 0 | I18: 463 | J18: =+Volumetrics[[#This Row],[Cars SME]]*Volumetrics[[#This Row],[Oz/Car]]/128 -> 0
A19: BC Cold Wax | B19: Drying Agent | C19: HM 530/ Pink | D19: =SUM(AllCars) -> 0 | F19: =+IF(Volumetrics[[#This Row],[Cars]] > 0, (Volumetrics[[#This Row],[Gals Used]]*128)/Volumetrics[[#This Row],[Cars]], 0) -> 0 | G19: 18.17 | H19: =+Volumetrics[[#This Row],[Oz/Car]]*Volumetrics[[#This Row],[Cents / Oz]]/100 -> 0 | I19: 463 | J19: =+Volumetrics[[#This Row],[Cars SME]]*Volumetrics[[#This Row],[Oz/Car]]/128 -> 0
A20: Hand soap | B20: Mitts | C20: N/A | D20: =SUM(AllCars) -> 0 | F20: =+IF(Volumetrics[[#This Row],[Cars]] > 0, (Volumetrics[[#This Row],[Gals Used]]*128)/Volumetrics[[#This Row],[Cars]], 0) -> 0 | G20: =AVERAGEIF(Inventory[[#Data],[Product]],Volumetrics[[#This Row],[Detergent]],Inventory[[#Data],[Cost / Gal]])/128* 100 -> 3.6171875 | H20: =+Volumetrics[[#This Row],[Oz/Car]]*Volumetrics[[#This Row],[Cents / Oz]]/100 -> 0 | I20: 463 | J20: =+Volumetrics[[#This Row],[Cars SME]]*Volumetrics[[#This Row],[Oz/Car]]/128 -> 0
A21: A960 Tire Shine | B21: Tire Shine | C21: N/A | D21: =SUM(AllCars) -> 0 | F21: =+IF(Volumetrics[[#This Row],[Cars]] > 0, (Volumetrics[[#This Row],[Gals Used]]*128)/Volumetrics[[#This Row],[Cars]], 0) -> 0 | G21: =AVERAGEIF(Inventory[[#Data],[Product]],Volumetrics[[#This Row],[Detergent]],Inventory[[#Data],[Cost / Gal]])/128* 100 -> 8.421875 | H21: =+Volumetrics[[#This Row],[Oz/Car]]*Volumetrics[[#This Row],[Cents / Oz]]/100 -> 0 | I21: 463 | J21: =+Volumetrics[[#This Row],[Cars SME]]*Volumetrics[[#This Row],[Oz/Car]]/128 -> 0
A22: Extra Service Detergent | D22: =SUM(ExtraServiceCars) -> 0 | F22: Extra | G22: =+Volumetrics[[#This Row],[Cost/Car]]-H11 ->  | H22: =+SUM(H23:H26)+H11 ->  | M22: Below $0.20/0.68=Green
A23: CW657 Blue Foam | B23: Triple Foam | C23: HM 530/ Pink | D23: =SUM(ExtraServiceCars) -> 0 | F23: =+IF(Volumetrics[[#This Row],[Cars]] > 0, (Volumetrics[[#This Row],[Gals Used]]*128)/Volumetrics[[#This Row],[Cars]], 0) -> 0 | G23: =AVERAGEIF(Inventory[[#Data],[Product]],Volumetrics[[#This Row],[Detergent]],Inventory[[#Data],[Cost / Gal]])/128* 100 -> 5.875 | H23: =+Volumetrics[[#This Row],[Oz/Car]]*Volumetrics[[#This Row],[Cents / Oz]]/100 -> 0 | I23: =SUM($J$6:$J$6) -> 95 | J23: =+Volumetrics[[#This Row],[Cars SME]]*Volumetrics[[#This Row],[Oz/Car]]/128 -> 0 | M23: Above $0.20/0.68=red
A24: CW659 Cherry Foam | B24: Triple Foam | C24: HM 530/ Pink | D24: =SUM(ExtraServiceCars) -> 0 | F24: =+IF(Volumetrics[[#This Row],[Cars]] > 0, (Volumetrics[[#This Row],[Gals Used]]*128)/Volumetrics[[#This Row],[Cars]], 0) -> 0 | G24: =AVERAGEIF(Inventory[[#Data],[Product]],Volumetrics[[#This Row],[Detergent]],Inventory[[#Data],[Cost / Gal]])/128* 100 -> 8.109375 | H24: =+Volumetrics[[#This Row],[Oz/Car]]*Volumetrics[[#This Row],[Cents / Oz]]/100 -> 0 | I24: =SUM($J$6:$J$6) -> 95 | J24: =+Volumetrics[[#This Row],[Cars SME]]*Volumetrics[[#This Row],[Oz/Car]]/128 -> 0
A25: CW658 Polish Yellow | B25: Triple Foam | C25: HM 530/ Pink | D25: =SUM(ExtraServiceCars) -> 0 | F25: =+IF(Volumetrics[[#This Row],[Cars]] > 0, (Volumetrics[[#This Row],[Gals Used]]*128)/Volumetrics[[#This Row],[Cars]], 0) -> 0 | G25: =AVERAGEIF(Inventory[[#Data],[Product]],Volumetrics[[#This Row],[Detergent]],Inventory[[#Data],[Cost / Gal]])/128* 100 -> 6.125 | H25: =+Volumetrics[[#This Row],[Oz/Car]]*Volumetrics[[#This Row],[Cents / Oz]]/100 -> 0 | I25: =SUM($J$6:$J$6) -> 95 | J25: =+Volumetrics[[#This Row],[Cars SME]]*Volumetrics[[#This Row],[Oz/Car]]/128 -> 0
A26: Flash dry | B26: Rain X | C26: HM 530/ Pink | D26: =SUM(ExtraServiceCars) -> 0 | F26: =+IF(Volumetrics[[#This Row],[Cars]] > 0, (Volumetrics[[#This Row],[Gals Used]]*128)/Volumetrics[[#This Row],[Cars]], 0) -> 0 | G26: 8.2 | H26: =+Volumetrics[[#This Row],[Oz/Car]]*Volumetrics[[#This Row],[Cents / Oz]]/100 -> 0 | I26: =SUM(#REF!) ->  | J26: =+Volumetrics[[#This Row],[Cars SME]]*Volumetrics[[#This Row],[Oz/Car]]/128 -> 
A27: Product | B27: Last Week | C27: Deliveries | D27: Now | E27: Used | F27: Error | G27: Cost / Gal | H27: Value | I27: Used SME | J27: Deliv SME | K27: Inv @ ME | L27: $ @ ME
A28: BC Cold Wax | B28: 16 | C28: 0 | D28: 12 | E28: 4 | F28: =Inventory[[#This Row],[Last Week]]+Inventory[[#This Row],[Deliveries]]-Inventory[[#This Row],[Used]]-Inventory[[#This Row],[Now]] -> 0 | G28: 14.9 | H28: =+G28*D28 -> 178.8 | I28: =SUMIF(Volumetrics[[#Data],[Detergent]], Inventory[[#This Row],[Product]], Volumetrics[[#Data],[Gals SME]]) -> 0 | K28: =+Inventory[[#This Row],[Now]]+Inventory[[#This Row],[Used SME]]-Inventory[[#This Row],[Deliv SME]] -> 12 | L28: =+Inventory[[#This Row],[Inv @ ME]]*Inventory[[#This Row],[Cost / Gal]] -> 178.8
A29: Rain X | B29: 17.5 | C29: 0 | D29: 17.5 | E29: 0 | F29: =Inventory[[#This Row],[Last Week]]+Inventory[[#This Row],[Deliveries]]-Inventory[[#This Row],[Used]]-Inventory[[#This Row],[Now]] -> 0 | G29: 22 | H29: =+G29*D29 -> 385 | I29: =SUMIF(Volumetrics[[#Data],[Detergent]], Inventory[[#This Row],[Product]], Volumetrics[[#Data],[Gals SME]]) -> 0 | K29: =+Inventory[[#This Row],[Now]]+Inventory[[#This Row],[Used SME]]-Inventory[[#This Row],[Deliv SME]] -> 17.5 | L29: =+Inventory[[#This Row],[Inv @ ME]]*Inventory[[#This Row],[Cost / Gal]] -> 385
A30: CW657 Blue Foam | B30: 110.5 | C30: 0 | D30: 109.5 | E30: 1 | F30: =Inventory[[#This Row],[Last Week]]+Inventory[[#This Row],[Deliveries]]-Inventory[[#This Row],[Used]]-Inventory[[#This Row],[Now]] -> 0 | G30: 7.52 | H30: 823.44 | I30: =SUMIF(Volumetrics[[#Data],[Detergent]], Inventory[[#This Row],[Product]], Volumetrics[[#Data],[Gals SME]]) -> 0 | K30: =+Inventory[[#This Row],[Now]]+Inventory[[#This Row],[Used SME]]-Inventory[[#This Row],[Deliv SME]] -> 109.5 | L30: =+Inventory[[#This Row],[Inv @ ME]]*Inventory[[#This Row],[Cost / Gal]] -> 823.44
A31: CW659 Cherry Foam | B31: 7.5 | C31: 0 | D31: 6 | E31: 1.5 | F31: =Inventory[[#This Row],[Last Week]]+Inventory[[#This Row],[Deliveries]]-Inventory[[#This Row],[Used]]-Inventory[[#This Row],[Now]] -> 0 | G31: 10.38 | H31: 62.28 | I31: =SUMIF(Volumetrics[[#Data],[Detergent]], Inventory[[#This Row],[Product]], Volumetrics[[#Data],[Gals SME]]) -> 0 | K31: =+Inventory[[#This Row],[Now]]+Inventory[[#This Row],[Used SME]]-Inventory[[#This Row],[Deliv SME]] -> 6 | L31: =+Inventory[[#This Row],[Inv @ ME]]*Inventory[[#This Row],[Cost / Gal]] -> 62.28
A32: CW658 Polish Yellow | B32: 30 | C32: 0 | D32: 30 | E32: 0 | F32: =Inventory[[#This Row],[Last Week]]+Inventory[[#This Row],[Deliveries]]-Inventory[[#This Row],[Used]]-Inventory[[#This Row],[Now]] -> 0 | G32: 7.84 | H32: =+G32*D32 -> 235.2 | I32: =SUMIF(Volumetrics[[#Data],[Detergent]], Inventory[[#This Row],[Product]], Volumetrics[[#Data],[Gals SME]]) -> 0 | K32: =+Inventory[[#This Row],[Now]]+Inventory[[#This Row],[Used SME]]-Inventory[[#This Row],[Deliv SME]] -> 30 | L32: =+Inventory[[#This Row],[Inv @ ME]]*Inventory[[#This Row],[Cost / Gal]] -> 235.2
A33: A960 Tire Shine | B33: 5 | C33: 0 | D33: 0 | E33: 5 | F33: =Inventory[[#This Row],[Last Week]]+Inventory[[#This Row],[Deliveries]]-Inventory[[#This Row],[Used]]-Inventory[[#This Row],[Now]] -> 0 | G33: 10.78 | H33: 0 | I33: =SUMIF(Volumetrics[[#Data],[Detergent]], Inventory[[#This Row],[Product]], Volumetrics[[#Data],[Gals SME]]) -> 0 | K33: =+Inventory[[#This Row],[Now]]+Inventory[[#This Row],[Used SME]]-Inventory[[#This Row],[Deliv SME]] -> 0 | L33: =+Inventory[[#This Row],[Inv @ ME]]*Inventory[[#This Row],[Cost / Gal]] -> 0
A34: Signature Clean | B34: 16 | C34: 0 | D34: 16 | E34: 0 | F34: =Inventory[[#This Row],[Last Week]]+Inventory[[#This Row],[Deliveries]]-Inventory[[#This Row],[Used]]-Inventory[[#This Row],[Now]] -> 0 | G34: 8.99 | H34: 143.84 | I34: =SUMIF(Volumetrics[[#Data],[Detergent]], Inventory[[#This Row],[Product]], Volumetrics[[#Data],[Gals SME]]) -> 0 | K34: =+Inventory[[#This Row],[Now]]+Inventory[[#This Row],[Used SME]]-Inventory[[#This Row],[Deliv SME]] -> 16 | L34: =+Inventory[[#This Row],[Inv @ ME]]*Inventory[[#This Row],[Cost / Gal]] -> 143.84
A35: Hand soap Prep Gun | B35: 32 | C35: 0 | D35: 26 | E35: 6 | F35: =Inventory[[#This Row],[Last Week]]+Inventory[[#This Row],[Deliveries]]-Inventory[[#This Row],[Used]]-Inventory[[#This Row],[Now]] -> 0 | G35: 4.63 | H35: 120.38 | I35: =SUMIF(Volumetrics[[#Data],[Detergent]], Inventory[[#This Row],[Product]], Volumetrics[[#Data],[Gals SME]]) -> 0 | K35: =+Inventory[[#This Row],[Now]]+Inventory[[#This Row],[Used SME]]-Inventory[[#This Row],[Deliv SME]] -> 26 | L35: =+Inventory[[#This Row],[Inv @ ME]]*Inventory[[#This Row],[Cost / Gal]] -> 120.38
A36: Hand soap | B36: 95 | C36: 0 | D36: 89 | E36: 6 | F36: =Inventory[[#This Row],[Last Week]]+Inventory[[#This Row],[Deliveries]]-Inventory[[#This Row],[Used]]-Inventory[[#This Row],[Now]] -> 0 | G36: 4.63 | H36: 412.07 | I36: =SUMIF(Volumetrics[[#Data],[Detergent]], Inventory[[#This Row],[Product]], Volumetrics[[#Data],[Gals SME]]) ->  | K36: =+Inventory[[#This Row],[Now]]+Inventory[[#This Row],[Used SME]]-Inventory[[#This Row],[Deliv SME]] ->  | L36: =+Inventory[[#This Row],[Inv @ ME]]*Inventory[[#This Row],[Cost / Gal]] -> 
A37: BC Hi Ph 3600 | B37: 0 | C37: 0 | D37: 0 | E37: 0 | F37: =Inventory[[#This Row],[Last Week]]+Inventory[[#This Row],[Deliveries]]-Inventory[[#This Row],[Used]]-Inventory[[#This Row],[Now]] -> 0 | G37: 18.41 | H37: 0 | I37: =SUMIF(Volumetrics[[#Data],[Detergent]], Inventory[[#This Row],[Product]], Volumetrics[[#Data],[Gals SME]]) -> 0 | K37: =+Inventory[[#This Row],[Now]]+Inventory[[#This Row],[Used SME]]-Inventory[[#This Row],[Deliv SME]] -> 0 | L37: =+Inventory[[#This Row],[Inv @ ME]]*Inventory[[#This Row],[Cost / Gal]] -> 0
A38: BC One Step | B38: 43.5 | C38: 0 | D38: 36.5 | E38: 7 | F38: =Inventory[[#This Row],[Last Week]]+Inventory[[#This Row],[Deliveries]]-Inventory[[#This Row],[Used]]-Inventory[[#This Row],[Now]] -> 0 | G38: 16.63 | H38: 606.995 | I38: =SUMIF(Volumetrics[[#Data],[Detergent]], Inventory[[#This Row],[Product]], Volumetrics[[#Data],[Gals SME]]) -> 0 | K38: =+Inventory[[#This Row],[Now]]+Inventory[[#This Row],[Used SME]]-Inventory[[#This Row],[Deliv SME]] -> 36.5 | L38: =+Inventory[[#This Row],[Inv @ ME]]*Inventory[[#This Row],[Cost / Gal]] -> 606.995
A39: BC Hi PH 380 | B39: 23 | C39: 30 | D39: 44 | E39: 9 | F39: =Inventory[[#This Row],[Last Week]]+Inventory[[#This Row],[Deliveries]]-Inventory[[#This Row],[Used]]-Inventory[[#This Row],[Now]] -> 0 | G39: 27.64 | H39: 1216.16 | I39: =SUMIF(Volumetrics[[#Data],[Detergent]], Inventory[[#This Row],[Product]], Volumetrics[[#Data],[Gals SME]]) -> 0 | K39: =+Inventory[[#This Row],[Now]]+Inventory[[#This Row],[Used SME]]-Inventory[[#This Row],[Deliv SME]] -> 44 | L39: =+Inventory[[#This Row],[Inv @ ME]]*Inventory[[#This Row],[Cost / Gal]] -> 1216.16
A40: BC Hi Ph 3618 | B40: 37 | C40: 55 | D40: 63 | E40: 29 | F40: =Inventory[[#This Row],[Last Week]]+Inventory[[#This Row],[Deliveries]]-Inventory[[#This Row],[Used]]-Inventory[[#This Row],[Now]] -> 0 | G40: 18.41 | H40: =G40*D40 -> 1159.83 | I40: =SUMIF(Volumetrics[[#Data],[Detergent]], Inventory[[#This Row],[Product]], Volumetrics[[#Data],[Gals SME]]) -> 0 | K40: =+Inventory[[#This Row],[Now]]+Inventory[[#This Row],[Used SME]]-Inventory[[#This Row],[Deliv SME]] -> 63 | L40: =+Inventory[[#This Row],[Inv @ ME]]*Inventory[[#This Row],[Cost / Gal]] -> 1159.83
A41: BC Low Ph 180 | B41: 11.5 | C41: 0 | D41: 11.5 | E41: 0 | F41: =Inventory[[#This Row],[Last Week]]+Inventory[[#This Row],[Deliveries]]-Inventory[[#This Row],[Used]]-Inventory[[#This Row],[Now]] -> 0 | G41: 33.91 | H41: =+G41*D41 -> 389.965 | I41: =SUMIF(Volumetrics[[#Data],[Detergent]], Inventory[[#This Row],[Product]], Volumetrics[[#Data],[Gals SME]]) ->  | K41: =+Inventory[[#This Row],[Now]]+Inventory[[#This Row],[Used SME]]-Inventory[[#This Row],[Deliv SME]] ->  | L41: =+Inventory[[#This Row],[Inv @ ME]]*Inventory[[#This Row],[Cost / Gal]] -> 
A42: BC Smart Shine 130 | B42: 11.5 | C42: 0 | D42: 6 | E42: 5.5 | F42: =Inventory[[#This Row],[Last Week]]+Inventory[[#This Row],[Deliveries]]-Inventory[[#This Row],[Used]]-Inventory[[#This Row],[Now]] -> 0 | G42: 33.91 | H42: =+G42*D42 -> 203.46 | I42: =SUMIF(Volumetrics[[#Data],[Detergent]], Inventory[[#This Row],[Product]], Volumetrics[[#Data],[Gals SME]]) -> 0 | K42: =+Inventory[[#This Row],[Now]]+Inventory[[#This Row],[Used SME]]-Inventory[[#This Row],[Deliv SME]] -> 6 | L42: =+Inventory[[#This Row],[Inv @ ME]]*Inventory[[#This Row],[Cost / Gal]] -> 203.46
A43: Total Inventory On Hand | H43: =SUM(Inventory[Value]) -> 5937.42 | L43: =SUM(Inventory[$ @ ME]) -> 

Sheet Instructions
A1: Load the spreadsheet.
A2: Switch to the Volumetrics tab at the bottom.
A3: Hit the "Prepare for Today's readings" button, Save a copy to someplace where you can find it.
A4: The spreadsheet is not "ready", dates are all set up, inventory numbers are copies, and all your "today" fields clear out.
A5: Verify your site name, manager name, today and last dates.
A6: Inventory your detergent. Fill in inventory values.
A7: Enter your deliveries.
A8: Fill in your volumetrics / detergents used.
A9: Check that you don't have any errors (red in the error column).
A11: What to do if you have a red in the "Error" column.
A12: An error indicates your inventory is wrong or your volumetrics is wrong. Check your inventory number.
A13: If your inventory is right, then you may have forgotten about some detergent that was either used (leak/spill) or delivered.
A14: If you forgot to enter a delivery (the Error number is a negative number), enter that.
A15: If you used some detergent that's not listed in the Volumetrics section, you'll need to enter the
A16: corrected number in volumetrics. A leak counts as use, as does a spill or similar.
A17: If you transferred some detergent to another site, that should be entered in deliveries as a negative number.
